Cogmind - Beta 15 @@@ ROGUE MODE // 2025.08.18 @ 12:34:01 Player: McSaucyNugget Result: Destroyed by P-80 Master with Gamma Rifle Performance ------------- Evolutions (9) 4500 Regions Visited (28) 5600 Robots Destroyed (377) 1885 Value Destroyed (19763) 19763 Prototype IDs (68) 1360 Alien Tech Used (3) 600 Bonus (20252) 20252 TOTAL SCORE: 53960 Bonus ------- High Alert Combat Kills 3888 Follower Combat Kills 3245 Awakened Behemoth Slayer 1000 Network Hubs Disabled 200 Met Imprinter 300 Was Imprinted 300 Met Zhirov 300 Met Warlord at Base 500 MAIN.C Attacked Warlord 500 Warlord Defense Kills 1858 Built Enhanced Grunts 300 A7 Reached Mainframe 300 Met R17 at Cetus 500 Found Hidden Lab 3000 Pursued by Intercept 1000 Acquired SGEMP 2000 Delivered SGEMP 2000 Friendly Fire -939 Cogmind --------- Core Integrity 0/1600 Matter 13/300 Energy 100/100 System Corruption 48% Temperature Cool (0) Movement Core (50) Location -1/Command Parts ------- > --- POWER (4) -------- (None) > --- PROPULSION (6) --- (None) > --- UTILITY (12) ----- Advanced Signal Interpreter Ghost Barrier > --- WEAPON (3) ------- (None) > --- INVENTORY (5) ---- Potential Cannon Disintegrator Multirail Peak State ------------ > --- POWER ------------ Quantum Reactor Light Quantum Reactor Light Quantum Reactor > --- PROPULSION ------- Enhanced Armored Medium Treads Enhanced Armored Medium Treads Centrium Heavy Treads Centrium Heavy Treads > --- UTILITY ---------- Experimental Power Amplifier Experimental Heat Sink Advanced Cooling System Huge Storage Unit Advanced Terrain Scan Processor Core Analyzer Quantum Capacitor Improved Transmission Jammer Centrium Medium Armor Plating AEGIS Remote Shield > --- WEAPON ----------- Enhanced Nova Cannon Perforator > --- INVENTORY -------- Quantum Reactor Light Quantum Reactor Enhanced Armored Medium Treads Advanced Heavy Treads Improved Heavy Siege Treads Advanced Heat Sink Experimental Heat Sink Zionite Biocell AEGIS Remote Shield Ghost Barrier Transdimensional Reconstructor Core Reset Matrix HERF Cannon Enhanced Nova Cannon Enhanced Nova Cannon Potential Cannon Disintegrator SGEMP Prototype [Rating: 205] Favorites ----------- Power Quantum Reactor Engine Light Angular Momentum Engine Power Core Nuclear Core Reactor Quantum Reactor Propulsion Improved Treads Treads Improved Treads Leg Advanced VSS Leg Wheel Compact Wheel Hover Unit Backup Propulsion VII Utility High-capacity Storage Unit Device Advanced Cooling System Storage High-capacity Storage Unit Processor Advanced Terrain Scan Processor Hackware Improved Hacking Suite Protection Centrium Medium Armor Plating Weapon Heavy Gatling Laser Energy Gun Heavy Gatling Laser Energy Cannon Advanced Plasma Cannon Ballistic Gun Light Assault Rifle Ballistic Cannon Antimatter Cannon Launcher Heavy Shock Bomb Launcher Special Weapon Improved Remote Datajack Impact Weapon Maul Piercing Weapon CR-A16's Pointy Stick Build | -11 -10 -10 -9 -9 -7 -6 -6 -6 -6 -6 -6 -5 -5 -5 -5 -4 -4 -4 -4 -4 -3 -3 -3 -3 -2 -2 -1 -1 ------- Run | Yrd Mat Min Mat Min Zio Pro Fac Ext Cet Arc Hub Fac Upp Upp War Pro Fac Upp Upp Zhi Pro Res Arm Lab Res Tes Acc Com Slots Evolved 18 | . . . 2 . . . 6 . . . . 2 . . . . 2 . . . . 2 . . 2 . 2 . Power 3 | . . . . . . . . . . . . 1 . . . . . . . . . . . . 1 . 1 . Propulsion 4 | . . . 1 . . . 2 . . . . . . . . . 1 . . . . . . . . . . . Utility 10 | . . . . . . . 4 . . . . 1 . . . . 1 . . . . 2 . . 1 . 1 . Weapon 1 | . . . 1 . . . . . . . . . . . . . . . . . . . . . . . . . Parts Attached 280 | 6 6 8 17 3 . 2 12 16 10 1 15 13 2 . 13 . 17 . 5 4 3 11 27 11 19 23 34 2 Power 33 | 1 1 2 1 1 . . . 2 1 . . 1 . . 1 . 1 . 1 1 . . 5 1 3 3 7 . Engine 6 | 1 1 1 1 1 . . . 1 . . . . . . . . . . . . . . . . . . . . Core 2 | . . 1 . . . . . 1 . . . . . . . . . . . . . . . . . . . . Reactor 25 | . . . . . . . . . 1 . . 1 . . 1 . 1 . 1 1 . . 5 1 3 3 7 . Propulsion 78 | 2 . 2 4 1 . 2 3 8 3 . 4 1 . . 5 . 7 . 1 1 2 3 7 . 8 4 10 . Treads 55 | 2 . . 1 1 . 2 3 8 3 . 4 1 . . 5 . 7 . . 1 2 2 2 . 3 4 4 . Leg 9 | . . . . . . . . . . . . . . . . . . . 1 . . 1 3 . 4 . . . Wheel 12 | . . 2 3 . . . . . . . . . . . . . . . . . . . . . 1 . 6 . Hover 2 | . . . . . . . . . . . . . . . . . . . . . . . 2 . . . . . Flight . | . . . . . . . . . . . . . . . . . . . . . . . . . . . . . Utility 93 | 1 2 2 3 . . . 6 2 3 1 6 7 . . 5 . 6 . 2 1 1 6 9 6 5 8 9 2 Device 54 | . . 1 3 . . . 3 . 1 1 2 6 . . 3 . 3 . 1 1 . 5 6 4 2 6 6 . Storage 7 | 1 1 . . . . . . . . . 2 . . . . . 1 . . . . . . . . 1 1 . Processor 14 | . 1 . . . . . 2 1 . . . 1 . . 2 . 2 . 1 . . . 1 . 1 . . 2 Hackware 6 | . . . . . . . . . . . 1 . . . . . . . . . . . . 2 2 . 1 . Protection 12 | . . 1 . . . . 1 1 2 . 1 . . . . . . . . . 1 1 2 . . 1 1 . Artifact . | . . . . . . . . . . . . . . . . . . . . . . . . . . . . . Weapon 76 | 2 3 2 9 1 . . 3 4 3 . 5 4 2 . 2 . 3 . 1 1 . 2 6 4 3 8 8 . Energy Gun 15 | . . 1 2 . . . . 1 2 . 3 2 . . . . . . . . . . 1 2 . . 1 . Energy Cannon 24 | . . . 2 . . . . 1 . . 1 . . . 1 . 3 . 1 . . 2 1 1 3 5 3 . Ballistic Gun 14 | 2 1 . 4 1 . . . . 1 . 1 . . . . . . . . . . . 1 . . 1 2 . Ballistic Cannon 10 | . . 1 . . . . 2 2 . . . 1 1 . . . . . . . . . 1 . . 1 1 . Launcher 8 | . 1 . 1 . . . . . . . . . 1 . 1 . . . . . . . 2 . . 1 1 . Special Weapon 2 | . . . . . . . . . . . . 1 . . . . . . . . . . . 1 . . . . Impact Weapon 1 | . 1 . . . . . . . . . . . . . . . . . . . . . . . . . . . Slashing Weapon . | . . . . . . . . . . . . . . . . . . . . . . . . . . . . . Piercing Weapon 2 | . . . . . . . 1 . . . . . . . . . . . . 1 . . . . . . . . Special Melee Weapon . | . . . . . . . . . . . . . . . . . . . . . . . . . . . . . Unidentified Prototypes 61 | . . 1 2 . . . . . 5 . 6 2 . . 6 . 1 . . 3 . 1 11 8 . 11 4 . Corrupted Parts 4 | . . . . . . . . . . . 1 . . . . . . . . . . 1 . . . . 2 . System Corruption 36 | . . . . . . . . . . . 10 . . . . . . . . . . 10 . . . . 16 . Parts Lost 110 | . 1 6 3 . . 1 1 4 2 3 . . . . . . 9 2 6 . 3 1 14 4 . 18 31 1 Power 17 | . . 1 1 . . . . 1 . . . . . . . . 1 1 1 . . . 1 . . 4 6 . Propulsion 37 | . . 2 1 . . 1 1 1 2 2 . . . . . . 5 . 1 . 1 . 6 2 . 3 9 . Utility 35 | . . . . . . . . 2 . 1 . . . . . . 2 . 3 . 1 1 5 . . 9 10 1 Weapon 21 | . 1 3 1 . . . . . . . . . . . . . 1 1 1 . 1 . 2 2 . 2 6 . Highest Loss Streak 12 | . 1 6 1 . . 1 1 2 2 3 . . . . . . 3 2 2 . 2 1 4 4 . 9 12 1 To Critical Strikes 4 | . . . . . . . . . 1 . . . . . . . . . . . . . 1 . . 1 1 . Average Backups 17 | 2 9 9 17 20 20 18 15 19 18 18 18 18 18 19 18 19 17 15 13 17 17 16 16 18 18 20 16 2 Power 1 | . 2 2 2 2 1 1 1 1 1 1 1 . . 1 1 2 1 . . . . . 2 3 2 2 . . Propulsion 3 | 1 4 3 3 5 4 3 1 4 3 1 4 4 5 5 4 4 2 1 1 1 2 2 1 . 1 3 . . Utility 5 | . . . 5 6 7 8 5 6 6 5 5 6 7 7 7 8 6 7 6 6 6 6 6 7 6 6 4 . Weapon 6 | . 2 2 5 6 6 6 7 7 7 9 7 7 6 6 5 5 6 7 6 9 6 6 5 5 5 4 9 2 Tool/Special . | . . . . . . . . . . . . . . . . . . . . . . . . . . . . . Unused Backups 62 | . . . 9 1 3 . 1 4 1 4 2 5 . . 2 . 3 . . 1 . 2 8 . 4 3 9 . Power 11 | . . . 1 . . . 1 . . 1 1 . . . 1 . . . . . . . 3 . 2 . 1 . Propulsion 4 | . . . . . 1 . . . . . . . . . . . . . . . . . 2 . . 1 . . Utility 20 | . . . 3 1 1 . . 3 1 1 1 1 . . . . 2 . . . . . 1 . . 2 3 . Weapon 25 | . . . 5 . 1 . . 1 . 2 . 4 . . 1 . 1 . . 1 . 2 2 . 2 . 3 . Tool/Special 2 | . . . . . . . . . . . . . . . . . . . . . . . . . . . 2 . Average Slot Usage (%) 90 | . 95 67 94 100 100 99 98 99 98 100 100 99 100 100 98 94 92 93 81 77 84 79 82 76 81 82 61 8 Engine 3 | . 14 4 7 11 11 11 6 3 1 . . . . . . . . . . . . . . . . . . . Reactor 5 | . . . . . . . . . 4 6 6 10 11 11 9 5 6 9 4 7 10 9 8 9 10 12 8 . Treads 21 | . 28 1 9 11 11 15 31 32 32 33 33 29 29 29 29 29 28 26 21 21 18 15 17 . 5 16 12 . Wheel 3 | . . 16 20 22 22 17 . . . . . . . . . . . . . . . . . . 1 . 2 . Device 14 | . . . 8 11 11 11 24 8 6 12 9 16 17 20 20 17 13 13 12 12 14 21 22 22 23 25 20 . Storage 7 | . 24 14 11 11 11 11 6 6 6 6 6 5 5 5 5 5 5 5 5 5 5 4 4 4 4 4 5 . Processor 9 | . . 4 . . . . 5 11 13 13 13 11 11 11 12 17 20 21 15 15 13 9 9 9 9 10 3 4 Protection 3 | . . 9 2 . . . . 11 12 6 6 5 4 2 1 . 1 1 5 5 4 4 3 4 3 1 . . Energy Gun 4 | . . 2 5 . . . . 1 11 13 7 8 11 11 10 9 5 4 5 2 3 . . 4 5 . . . Energy Cannon 5 | . . . 1 22 22 22 13 4 . . . . . . . . 4 4 9 4 10 13 12 1 3 7 7 . Ballistic Gun 5 | . 26 1 21 11 11 11 2 . 6 6 11 3 . . . . . . . . . . . . . 1 . . Ballistic Cannon 2 | . . 2 . . . . 2 12 1 . . 3 5 5 5 5 4 5 . . . . . 2 1 . . . Peak Build Rating 205 | 6 9 15 20 26 27 27 50 54 86 78 83 98 98 102 115 114 129 125 117 129 133 154 153 145 183 205 188 33 Average Rating 87 | 4 7 8 17 21 26 26 43 51 67 77 80 95 97 97 100 113 120 120 105 105 128 142 142 132 160 182 142 19 On Entrance 79 | . 6 9 12 20 26 27 27 50 52 77 78 82 97 98 98 114 113 120 117 104 129 128 145 141 141 177 95 14 Naked Turns 2 | . . . . . . . . . . . . . . . . . . . . . . . . . . . 2 . Heaviest Build 201 | 10 52 61 61 63 63 63 75 95 93 92 87 109 109 109 113 111 146 108 95 107 119 139 148 115 147 200 201 . Greatest Support 230 | 40 40 32 26 26 26 63 103 111 113 116 116 121 121 121 140 139 180 180 180 200 220 220 208 54 188 230 215 3 Greatest Overweight (x) 11 | 1 1 3 3 2 2 2 1 1 1 . . . . . . . 1 . . . . . 2 2 11 1 11 . Average Overweight (x) . | . . 2 2 2 2 1 . . . . . . . . . . . . . . . . . 1 1 . 1 . Largest Inventory Capacity 25 | 8 20 20 20 20 20 20 20 20 20 20 20 20 20 20 20 20 20 20 20 20 20 20 20 20 20 25 25 5 Average Capacity 20 | 7 19 20 20 20 20 20 20 20 20 20 20 20 20 20 20 20 20 20 20 20 20 20 20 20 20 24 24 5 Most Carried 25 | 5 13 13 20 20 20 20 20 20 20 20 20 20 20 20 20 20 20 18 17 20 20 20 20 20 20 25 25 5 Average Carried 18 | 2 9 9 17 19 19 18 15 19 19 19 19 19 19 20 19 20 19 17 15 19 19 19 18 18 19 24 19 4 Final Capacity 25 | 8 20 20 20 20 20 20 20 20 20 20 20 20 20 20 20 20 20 20 20 20 20 20 20 20 20 25 5 5 Final Carried 22 | 4 12 13 20 20 20 18 20 19 20 20 20 19 20 20 20 20 18 17 17 20 20 20 16 20 20 22 5 5 Class Distribution -------------------- 16% | Gunner 16% | Mutant 15% | Scavenger-Skirmisher 15% | Scavenger-Gunner 14% | Scavenger-Tank 6% | Tank 5% | Commander-Tank 3% | Scavenger-Mutant Dominant Class ---------------- Mutant | -10/Materials Mutant | -10/Mines Tank | -9/Materials Gunner | -9/Mines Gunner | -7/Zion Gunner | -6/Proximity Caves Scavenger-Skirmisher | -6/Factory Commander-Tank | -6/Extension Commander-Tank | -6/Cetus Commander-Gunner | -6/Archives Scavenger-Gunner | -6/Hub_04(d) Scavenger-Gunner | -5/Factory Scavenger-Tank | -5/Upper Caves Scavenger-Skirmisher | -5/Upper Caves Scavenger-Skirmisher | -5/Warlord Scavenger-Skirmisher | -4/Proximity Caves Scavenger-Gunner | -4/Factory Scavenger-Skirmisher | -4/Upper Caves Scavenger-Tank | -4/Upper Caves Scavenger-Mutant | -4/Zhirov Scavenger-Tank | -3/Proximity Caves Scavenger-Tank | -3/Research Tank | -3/Armory Gunner | -3/Lab Mutant | -2/Research Scavenger-Gunner | -2/Testing Generator-Tank | -1/Access Hacker-Mutant | -1/Command Resources | -11 -10 -10 -9 -9 -7 -6 -6 -6 -6 -6 -6 -5 -5 -5 -5 -4 -4 -4 -4 -4 -3 -3 -3 -3 -2 -2 -1 -1 ----------- Run | Yrd Mat Min Mat Min Zio Pro Fac Ext Cet Arc Hub Fac Upp Upp War Pro Fac Upp Upp Zhi Pro Res Arm Lab Res Tes Acc Com Matter Collected 9328 | 215 247 208 737 60 . 39 154 775 212 84 237 246 312 106 326 66 722 272 227 96 92 123 657 71 765 1067 1212 . Remotely . | . . . . . . . . . . . . . . . . . . . . . . . . . . . . . Salvage Created 19880 | . 678 23 916 188 . 76 85 853 244 358 485 311 301 127 955 . 2099 373 636 219 301 486 2361 71 1322 2750 3662 . Parts 858 | . 38 . 63 12 . 6 1 38 10 23 25 9 15 1 36 . 96 21 11 3 13 24 74 11 60 107 161 . Haulers Intercepted 6 | . . . 3 . . . . . . . . 2 . . . . . . . . . . . . . . 1 . Recyclers Shooed 8 | 1 2 . . . . . . 2 . . . . . . . . 1 . . . . . . . . . 2 . Parts Field Recycled . | . . . . . . . . . . . . . . . . . . . . . . . . . . . . . Retrieved Matter . | . . . . . . . . . . . . . . . . . . . . . . . . . . . . . Parts Self-Destructed 45 | . . . . . . 9 . . . . . . 15 1 . . . 5 4 2 9 . . . . . . . Prevented 12 | . . . . . . . . . . . . . 3 . . . . 9 . . . . . . . . . . Kills | -11 -10 -10 -9 -9 -7 -6 -6 -6 -6 -6 -6 -5 -5 -5 -5 -4 -4 -4 -4 -4 -3 -3 -3 -3 -2 -2 -1 -1 ------- Run | Yrd Mat Min Mat Min Zio Pro Fac Ext Cet Arc Hub Fac Upp Upp War Pro Fac Upp Upp Zhi Pro Res Arm Lab Res Tes Acc Com Combat Hostiles Destroyed 302 | . 15 1 24 4 . 3 2 21 2 2 3 3 9 2 14 . 37 7 10 . 4 8 38 1 15 33 44 . Melee 3 | . . . . . . . . . . . 1 . . . . . . . . . . . 1 1 . . . . Guns 59 | . 12 . 16 . . . . . 1 2 2 2 6 2 1 . 7 . 5 . 1 . . . 1 . 1 . Cannons 136 | . . . 5 4 . 3 2 21 . . . 1 . . 1 . 15 . 3 . 1 5 24 . 8 17 26 . AOE 56 | . 3 1 3 . . . . . . . . . 3 . 6 . 9 5 1 . . 2 5 . . 5 13 . Classes Destroyed 29 | . 5 . 3 2 . . 2 1 1 . 3 . 2 1 4 . 1 . . . . . 1 . . 3 . . Worker 17 | . 1 . 3 . . . . 1 . . 4 . . . . . 1 . . . . . . . 2 . 5 . Builder 15 | . . . . . . . . . . . 1 . . . . . 1 . . . . . . . 1 2 10 . Tunneler 3 | . . . . 2 . . . . . . . . . . . . . . . . . 1 . . . . . . Hauler 6 | . . . 3 . . . . . . . . 2 . . . . . . . . . . . . . . 1 . Recycler 9 | . 4 . . . . . . . . . . . . . . . . . . . . . . . . 2 3 . Mechanic 2 | . . . . . . . . . . . . . . . 1 . . . . . . . . . . . 1 . Operator 9 | . 1 . . . . . . . . 7 . . . . . . 1 . . . . . . . . . . . Watcher 6 | . . . 2 . . . . 1 1 . . . . . . . . . . . . . 1 . . . 1 . Swarmer 62 | . 9 . 11 1 . 3 . 7 . . . . 4 . . . 8 5 . . 2 4 8 . . . . . Saboteur 2 | . . . . . . . . . . . . . . . . . . . . . . . 1 . . . 1 . Grunt 91 | . 6 1 9 2 . . . 3 . . 1 . . 1 6 . 11 . 3 . . 3 11 . 5 12 17 . Brawler 7 | . . . . . . . . . . . . . . . 2 . 2 . 1 . . . 1 . . . 1 . Duelist 15 | . . . . 1 . . . . . . . . . . 1 . 3 . 2 . . . 4 . 1 2 1 . Protector 2 | . . . . . . . . . . . . . . . 2 . . . . . . . . . . . . . Researcher 1 | . . . . . . . . . . . . . . . . . . . . . . . . . . 1 . . Sentry 29 | . . . 4 . . . . 9 . 2 1 1 . 1 . . 2 . 1 . 1 . 4 . 3 . . . Demolisher 2 | . . . . . . . . . . . . . . . 1 . . . . . . . 1 . . . . . Specialist 7 | . . . . . . . . . . . . . 2 . . . . . . . . . . . . 3 2 . Hunter 16 | . . . . . . . . . . . . . 1 . . . 2 2 . . . . 4 . . 2 5 . Programmer 47 | . . . . . . . 1 . . . . 2 2 . . . 8 . . . . . 4 . 6 8 16 . Behemoth 5 | . . . . . . . . . . . 1 . . . . . 1 . . . 1 1 . . . . 1 . Cetus Guard 2 | . . . . . . . . . 2 . . . . . . . . . . . . . . . . . . . Enhanced Grunt 1 | . . . . . . . . . . . 1 . . . . . . . . . . . . . . . . . Tracker 1 | . . . . . . . . . . . . . . . . . . . . . . . . . . 1 . . Combat Programmer 2 | . . . . . . . . . . . . . . . . . . . . . . . . . . 2 . . Striker 2 | . . . . . . . . . . . . . . . . . . . . . . . . . . 2 . . Executioner 2 | . . . . . . . . . . . . . . . 2 . . . . . . . . . . . . . Alpha 7 1 | . . . . . . . . . . . . . . . . . . . . . . . . . . 1 . . Z-Light 1 | . . . . . . . . . . . 1 . . . . . . . . . . . . . . . . . Z-Heavy 1 | . . . . . . . . . . . . . . . . . 1 . . . . . . . . . . . Samaritan 4 | . . . . . . . . . . . . . . 1 . . . 2 . . 1 . . . . . . . Thug 6 | . . . . . . . . 1 . . 2 . . . . . . . 3 . . . . . . . . . Savage 1 | . . . . . . . . 1 . . . . . . . . . . . . . . . . . . . . Fireman 2 | . . . . . . . . . 2 . . . . . . . . . . . . . . . . . . . Mutant 1 | . . . . . . . 1 . . . . . . . . . . . . . . . . . . . . . Best Kill Streak 29 | . 5 1 6 3 . 3 1 6 2 3 3 2 4 1 14 . 9 5 3 . 3 8 5 1 4 13 29 . Combat Bots Only 18 | . 3 1 4 3 . 3 1 6 1 2 1 1 4 1 13 . 9 5 3 . 3 8 5 1 4 9 18 . Max Kills in Single Turn 7 | . 2 1 2 1 . 1 1 1 1 2 7 1 3 1 2 . 3 4 1 . 1 2 3 1 2 2 4 . Gunslinging 1 | . . . . . . . . . . 1 . . . . . . . . . . . . . . . . . . Exploded 4 | . 2 1 1 . . . . . . . . . 3 . 2 . 3 4 1 . . 2 2 . . 1 2 . Melee 1 | . . . . . . . . . . . 1 . . . . . . . . . . . 1 1 . . . . Uniques/NPCs Destroyed 1 | . . . . . . . . . . . . . . . . . . . . . . . . 1 . . . . A5 (-3/Lab) Combat | -11 -10 -10 -9 -9 -7 -6 -6 -6 -6 -6 -6 -5 -5 -5 -5 -4 -4 -4 -4 -4 -3 -3 -3 -3 -2 -2 -1 -1 -------- Run | Yrd Mat Min Mat Min Zio Pro Fac Ext Cet Arc Hub Fac Upp Upp War Pro Fac Upp Upp Zhi Pro Res Arm Lab Res Tes Acc Com Hostile Shots Fired 2469 | . 79 20 80 8 . 10 16 329 37 10 10 15 27 9 31 . 214 16 45 . 44 59 299 32 89 409 538 43 Missed 738 | . 24 5 27 2 . . 5 109 12 3 6 6 9 5 8 . 69 4 16 . 14 14 71 10 34 93 176 16 Hits 1731 | . 55 15 53 6 . 10 11 220 25 7 4 9 18 4 23 . 145 12 29 . 30 45 228 22 55 316 362 27 Melee 35 | . . . . 1 . . . . . . . . . . . . 11 . . . . . 12 . . 6 5 . Projectile 1696 | . 55 15 53 5 . 10 11 220 25 7 4 9 18 4 23 . 134 12 29 . 30 45 216 22 55 310 357 27 AOE 2 | . . . . . . . 1 . . . . . . . . . . . . . . . . . . . 1 . Critical Strikes 90 | . 1 . 3 . . . 1 1 7 . . 1 1 . 2 . 5 . 1 . 1 . 13 . 3 22 25 3 Part Disruptions 4 | . . . . . . . . . . . . . . . . . . . . . . . . 1 . 2 1 . Damage Taken 29788 | . 519 322 587 83 . 181 287 1776 598 181 202 175 233 65 617 . 3157 381 762 . 681 834 4062 570 743 4449 7696 627 Core 3209 | . 50 71 87 17 . 27 15 124 29 19 18 . 18 . 86 . 120 16 72 . 59 76 256 108 60 264 1039 578 Absorbed by Shields 6471 | . . . 80 . . . 29 150 161 . . 32 89 22 25 . 375 . . . . 235 1065 . 622 2673 913 . Reduced by Siege Mode 39 | . . . . . . . . . . . . . . . . . . . . . . . . . . 39 . . Ignored by Resistances 280 | . . . 16 . . . . 164 29 . . . . . . . . . . . 31 40 . . . . . . Regen/Repaired (Parts) 175 | . . . . . . . 99 . . . . . . . 76 . . . . . . . . . . . . . Core Remaining (%) 76 | 100 . 51 . . . 67 . . . . 75 . . . . 89 . . . . 76 . . 86 . 69 . . Volleys Fired 922 | 3 64 15 63 10 1 6 18 45 18 19 15 21 16 11 18 8 83 16 31 3 16 12 108 . 70 148 82 2 Largest 3 | 1 2 2 3 3 1 3 3 3 3 3 3 3 3 3 3 1 3 2 3 3 3 3 3 . 2 2 3 1 Hottest 360 | 20 40 40 130 159 68 164 180 168 188 195 195 233 233 233 233 33 233 198 296 296 296 309 324 . 176 200 360 45 Shots Fired 1682 | 3 123 23 162 30 1 18 41 132 43 54 29 53 39 23 24 8 164 20 73 9 36 28 197 1 78 145 124 1 Gun 607 | 3 119 17 144 10 . 6 4 2 43 54 29 35 23 15 6 . 41 3 21 3 5 . 1 . 14 6 2 1 Cannon 992 | . . . 14 20 1 12 37 130 . . . 16 15 8 4 8 106 9 43 6 31 26 188 1 64 139 114 . Launcher 81 | . 4 6 4 . . . . . . . . . 1 . 14 . 17 8 9 . . 2 8 . . . 8 . Special 2 | . . . . . . . . . . . . 2 . . . . . . . . . . . . . . . . Kinetic 586 | 3 119 17 116 10 . 6 13 90 18 19 12 26 15 8 3 8 45 1 8 . . . 8 . . 18 22 1 Thermal 915 | . . . 24 20 1 12 28 42 25 35 17 25 23 15 6 . 102 11 56 9 36 26 181 1 48 78 94 . Explosive 23 | . 4 6 4 . . . . . . . . . 1 . . . . . . . . . . . . . 8 . Electromagnetic 155 | . . . 18 . . . . . . . . . . . 14 . 17 8 9 . . 2 8 . 30 49 . . Entropic 1 | . . . . . . . . . . . . . . . 1 . . . . . . . . . . . . . Robot Hit Streak 22 | 1 7 4 12 10 . 3 11 16 13 8 9 6 11 6 12 . 16 12 12 22 7 9 17 3 12 12 6 7 Robot Miss Streak 17 | 2 3 2 7 2 . 8 1 2 5 4 2 3 4 2 1 . 4 2 4 1 2 3 6 . 3 17 16 . Penetration Max 2 | . . . . . . . . . 1 1 . 1 . . . . . . . . . . . . . 1 2 . Secondary Targets 6 | . 1 . 2 . . . . . 2 1 . . . . . . . . . . . . . . . . . . Max Gunslinging Chain 1 | . 1 . 1 . . . . . 1 1 . . . . . . . . . . . . . . . . . . Capacitor 240 | . . . . . . . . . . . . . . . . . . . . . . . 48 1 64 127 . . Shots Hit Robots 983 | 1 67 15 100 13 . 6 23 91 33 37 17 26 20 15 18 . 89 8 46 8 14 15 116 13 50 75 66 1 Core Hits 755 | . 40 7 50 7 . 3 5 39 22 29 18 13 20 12 46 . 91 11 31 3 7 11 74 5 25 70 116 . Critical Kills 40 | . . . . . . . . . . 2 . 1 . . . . . 1 . . . . 4 . . 6 26 . Critical Parts Destroyed 57 | . 1 . . . . . . . . 4 1 1 . . . . . . . . . . . . . 14 35 1 Critical Strikes 116 | . 1 . . . . . 1 8 . 6 1 3 1 1 . . . 1 . . . . 4 2 2 23 61 1 Burn 1 | . . . . . . . . . . . . . . . . . . . . . . . . . 1 . . . Meltdown 11 | . . . . . . . . . . . . . . . . . . 1 . . . . 4 . . 2 4 . Destroy 89 | . 1 . . . . . . . . 6 1 2 . . . . . . . . . . . . . 21 57 1 Blast 12 | . . . . . . . 1 8 . . . 1 1 1 . . . . . . . . . . . . . . Corrupt 1 | . . . . . . . . . . . . . . . . . . . . . . . . . 1 . . . Impale 2 | . . . . . . . . . . . . . . . . . . . . . . . . 2 . . . . Melee Attacks 31 | . 1 . . . . . 2 1 . . 1 . . . . . 5 . . 1 1 1 . 18 . . . . Impact 1 | . 1 . . . . . . . . . . . . . . . . . . . . . . . . . . . Slashing . | . . . . . . . . . . . . . . . . . . . . . . . . . . . . . Piercing 30 | . . . . . . . 2 1 . . 1 . . . . . 5 . . 1 1 1 . 18 . . . . Sneak Attacks 1 | . . . . . . . . 1 . . . . . . . . . . . . . . . . . . . . Combat Hostiles . | . . . . . . . . . . . . . . . . . . . . . . . . . . . . . Follow-up Attacks . | . . . . . . . . . . . . . . . . . . . . . . . . . . . . . Damage Inflicted 45229 | 9 849 361 1805 251 . 143 634 2548 853 1037 1230 899 789 456 2727 . 5221 598 1917 409 437 997 6229 596 2037 4824 7304 69 Guns 9425 | 9 561 92 1320 24 . 41 46 54 853 1037 470 580 522 344 170 . 1634 92 694 163 148 . 24 . 305 61 117 64 Cannons 21184 | . . . 206 227 . 102 572 2404 . . . 319 72 112 98 . 1645 65 986 246 289 611 5232 27 1715 3282 2974 . Explosions 13616 | . 280 269 267 . . . . . . . 709 . 195 . 2459 . 1761 441 237 . . 358 969 . . 1481 4190 . Melee 798 | . . . . . . . . 60 . . 37 . . . . . 132 . . . . . . 569 . . . . Ramming 206 | . 8 . 12 . . . 16 30 . . 14 . . . . . 49 . . . . 28 4 . 17 . 23 5 Kinetic 7544 | 9 561 92 1148 24 . 41 226 1697 338 364 246 493 72 112 98 . 827 . 193 . . . 49 . . 216 674 64 Thermal 25114 | . . . 220 227 . 102 392 761 515 673 224 406 522 344 996 . 2784 157 1487 409 437 764 5233 27 1188 3250 3996 . Explosive 3622 | . 280 269 267 . . . . . . . . . 195 . . . . . . . . . . . . . 2611 . Electromagnetic 7945 | . . . 158 . . . . . . . 709 . . . 1633 . 1429 441 237 . . 205 943 . 832 1358 . . Impact . | . . . . . . . . . . . . . . . . . . . . . . . . . . . . . Slashing . | . . . . . . . . . . . . . . . . . . . . . . . . . . . . . Piercing 798 | . . . . . . . . 60 . . 37 . . . . . 132 . . . . . . 569 . . . . Highest Corruption 47 | . . . . . . . . . . . 11 6 6 6 6 . 6 2 3 3 3 11 22 30 6 40 44 47 Average Corruption 9 | . . . . . . . . . . . 2 2 6 6 6 . 3 2 2 3 3 10 15 28 2 14 25 44 Corruption Purged 7 | . . . . . . . . . . . . . . . . . 7 . . . . . . . . . . . Corruption Blocked . | . . . . . . . . . . . . . . . . . . . . . . . . . . . . . Effects 300 | . . . . . . . . . . . 1 4 21 20 2 . 15 9 19 6 14 9 49 26 5 64 32 4 Message Errors 71 | . . . . . . . . . . . . . 5 9 1 . 4 2 2 . 5 4 14 6 1 12 4 2 Matter Fused 68 | . . . . . . . . . . . . 2 5 2 . . 1 3 4 2 4 1 13 6 2 13 10 . Heat Flow Errors 33 | . . . . . . . . . . . . 2 5 1 . . 1 1 4 2 1 . 7 1 . 7 1 . Energy Discharges 31 | . . . . . . . . . . . 1 . . 2 . . 2 1 3 1 2 1 6 5 1 3 3 . Parts Rejected 1 | . . . . . . . . . . . . . . . . . . . . . . . . . . 1 . . Parts Fused 6 | . . . . . . . . . . . . . 1 3 . . 1 . . 1 . . . . . . . . Data Loss (minor) 31 | . . . . . . . . . . . . . 4 . . . 2 . 5 . 1 1 3 3 . 9 2 1 Data Loss (major) 9 | . . . . . . . . . . . . . . 1 1 . . 1 . . . . . 3 . 2 1 . Misfires 14 | . . . . . . . . . . . . . 1 1 . . 3 1 . . . . 1 1 1 2 3 . Alerts 7 | . . . . . . . . . . . . . . 1 . . 1 . 1 . . . . 1 . 2 1 . Misdirections 8 | . . . . . . . . . . . . . . . . . . . . . . 1 1 . . 5 1 . Weapon Failures 21 | . . . . . . . . . . . . . . . . . . . . . 1 1 4 . . 8 6 1 Overload Shots . | . . . . . . . . . . . . . . . . . . . . . . . . . . . . . Overflow Damage 1216 | . . 32 28 . . . 16 38 . . . . . . 10 . 74 46 13 59 16 18 173 28 20 142 503 . Projectiles 599 | . . . . . . . 16 38 . . . . . . 3 . 39 . 13 59 16 10 173 . 20 6 206 . Explosions 583 | . . 32 28 . . . . . . . . . . . 7 . 35 46 . . . 2 . . . 136 297 . Melee 34 | . . . . . . . . . . . . . . . . . . . . . . 6 . 28 . . . . Knockbacks 70 | . 1 . 1 . . . . 8 . . . 3 1 1 3 . 5 . 1 . . . . . . 12 34 . Impact 1 | . 1 . . . . . . . . . . . . . . . . . . . . . . . . . . . Kinetic 60 | . . . 1 . . . . 6 . . . 2 1 1 2 . 5 . 1 . . . . . . 11 30 . Secondary 9 | . . . . . . . . 2 . . . 1 . . 1 . . . . . . . . . . 1 4 . Self-Inflicted Damage 1150 | . . 95 17 . . . . . . . 106 . 51 . 97 . 196 135 62 . . 90 112 . . 40 147 2 Shots 46 | . . 3 1 . . . . . . . 1 . 1 . 5 . 10 4 3 . . 3 11 . . 1 3 . Rammed 23 | . 3 . 2 . . . 3 3 . . 1 . . . . . 5 . . . . 1 1 . 1 . 1 2 Targets Rammed 26 | . 4 . 2 . . . 3 3 . . 3 . . . . . 5 . . . . 1 1 . 1 . 1 2 Kicked . | . . . . . . . . . . . . . . . . . . . . . . . . . . . . . Crushed 3 | . 1 . . . . . . . . . 2 . . . . . . . . . . . . . . . . . Highest Temperature 412 | . 18 18 202 60 . 164 134 197 131 3 128 42 171 70 1 . 302 219 202 178 112 . 114 21 192 412 181 . Average Temperature 60 | . 8 10 52 23 . 80 49 48 77 3 69 28 76 24 1 . 82 59 43 51 39 . 47 21 76 109 45 . Received Heat Transfer 4082 | . 159 132 192 24 . 9 42 461 57 36 18 12 6 18 122 . 597 . 144 . 72 28 436 . 64 533 920 . Effects 1 | . . . . . . . . . . . . . . . . . . . . . . . . . . 1 . . Shutdowns 1 | . . . . . . . . . . . . . . . . . . . . . . . . . . 1 . . Siege Activations 1 | . . . . . . . . . . . . . . . . . . . . . . . . . . 1 . . Total Turns 13 | . . . . . . . . . . . . . . . . . . . . . . . . . . 13 . . Longest Duration 13 | . . . . . . . . . . . . . . . . . . . . . . . . . . 13 . . Martial Activations . | . . . . . . . . . . . . . . . . . . . . . . . . . . . . . Shielding Activations . | . . . . . . . . . . . . . . . . . . . . . . . . . . . . . Robots Disrupted 1 | . . . . . . . . . . . . . . . 1 . . . . . . . . . . . . . Combat Hostiles 1 | . . . . . . . . . . . . . . . 1 . . . . . . . . . . . . . Robots Corrupted 32 | . . . . . . . . . . . . . . . 7 . 5 2 1 . . 1 2 . 6 8 . . Combat Hostiles 30 | . . . . . . . . . . . . . . . 6 . 5 2 1 . . . 2 . 6 8 . . Parts Fried 72 | . . . . . . . . . . . 2 . . . 9 . 13 2 7 . . 2 7 . 9 21 . . Impact Corruptions 1 | . . . . . . . . . . . . . . . . . . . . . . 1 . . . . . . Robots Melted 16 | . . . . . . . . . 1 . . . . . . . . 1 . . 1 . 6 . . 3 4 . Combat Hostiles 15 | . . . . . . . . . 1 . . . . . . . . . . . 1 . 6 . . 3 4 . Parts Melted 75 | . . . 2 1 . . 1 2 1 2 . 1 1 . 4 . 6 . 6 . 1 1 19 . 2 11 14 . Heat Transferred 29190 | . . . 447 407 . 185 629 1383 1011 1270 296 547 825 575 1012 . 3650 250 2350 450 625 761 4855 37 1184 2657 3784 . Parts Sabotaged 12 | . . . . . . . . . . . . . . . . . . . . . . . 5 . . 2 5 . Parts Stolen . | . . . . . . . . . . . . . . . . . . . . . . . . . . . . . Parts Stripped . | . . . . . . . . . . . . . . . . . . . . . . . . . . . . . Power Chain Reactions 17 | . . . . . . . . . . . . . . . 8 . 4 2 1 . . 1 1 . . . . . Alert | -11 -10 -10 -9 -9 -7 -6 -6 -6 -6 -6 -6 -5 -5 -5 -5 -4 -4 -4 -4 -4 -3 -3 -3 -3 -2 -2 -1 -1 ------- Run | Yrd Mat Min Mat Min Zio Pro Fac Ext Cet Arc Hub Fac Upp Upp War Pro Fac Upp Upp Zhi Pro Res Arm Lab Res Tes Acc Com Maximum Alert Level 5 | . . . 1 . . . . 2 1 . 4 2 . . . . 3 . . . . . 2 . 1 3 5 4 Low Security (%) 62 | 100 100 100 73 100 . . 100 77 37 100 4 . . . . . 30 . . . . 100 37 . 97 46 . . Level 1 14 | . . . 26 . . . . 9 62 . 13 . . . . . 22 . . . . . 36 . 2 36 22 . Level 2 12 | . . . . . . . . 13 . . 37 100 . . . . 18 . . . . . 25 . . 12 2 . Level 3 5 | . . . . . . . . . . . 2 . . . . . 28 . . . . . . . . 4 20 . Level 4 3 | . . . . . . . . . . . 41 . . . . . . . . . . . . . . . 27 100 Level 5 1 | . . . . . . . . . . . . . . . . . . . . . . . . . . . 27 . High Security . | . . . . . . . . . . . . . . . . . . . . . . . . . . . . . Max Security . | . . . . . . . . . . . . . . . . . . . . . . . . . . . . . Peak Influence 2354 | . 166 34 327 121 . . 44 489 293 146 1314 653 . . . . 1070 . . . . 177 631 . 217 741 2354 1497 Initial 1497 | . . 15 . 121 . . 24 . 252 54 22 639 . . . . . . . . . . 59 . . 117 388 1497 Average 265 | . 64 1 106 37 . . 7 147 210 85 769 553 . . . . 465 . . . . 63 262 . 64 259 1190 1483 Influence Increases 13982 | . 551 72 722 185 . 142 135 960 350 282 1846 394 245 45 285 . 1662 160 150 15 90 218 1107 . 479 1237 2650 . Destroy 0b10 Robot/C 7400 | . 300 20 480 140 . 60 80 580 160 80 620 160 200 40 240 . 880 140 140 . 80 160 760 . 300 680 1100 . Destroy 0b10 Robot/NC 465 | . 30 . 40 10 . 10 5 20 10 35 75 25 . 5 15 . 15 . . 15 . 5 5 . 15 20 110 . Destroy Leader 1222 | . 70 10 120 20 . 10 20 36 . . 134 44 20 . . . 190 20 10 . 10 10 122 . 70 90 216 . Allied During Kill 1751 | . . . . 15 . 62 26 270 170 115 795 106 10 . . . 38 . . . . . . . . . 144 . Successful Hack 161 | . 4 . 35 . . . . 21 9 . . . . . . . 49 . . . . . . . 16 27 . . Select Force Hacks 30 | . 30 . . . . . . . . . . . . . . . . . . . . . . . . . . . Disable Machine 750 | . . 15 15 . . . . . . 45 60 15 . . . . 225 . . . . 15 60 . 45 165 90 . Anti-Garrison Action 300 | . . . . . . . . . . . . . . . . . . . . . . . . . . . 300 . Destroy Structure 1603 | . 27 27 17 . . . 4 33 1 7 147 44 . . . . 220 . . . . 28 130 . 33 240 645 . Partial Spotted 30 | . 15 . . . . . . . . . . . . . . . . . . . . . . . . 15 . . Lose Combat Pursuer 270 | . 75 . 15 . . . . . . . 15 . 15 . 30 . 45 . . . . . 30 . . . 45 . Influence Decreases 12525 | . 511 112 411 496 . 103 174 510 664 354 604 1089 573 328 35 250 596 733 523 135 90 104 590 631 270 798 958 883 Entered New Map 4242 | . . 25 . 190 . . 15 . 198 82 42 667 227 55 . 250 . 395 95 120 . . 55 631 . 92 260 843 Time Decay 6470 | . 501 37 379 230 . 74 133 430 246 222 302 342 326 273 35 . 476 318 368 15 80 94 395 . 270 526 368 30 Lost Part 1021 | . 10 50 22 . . 9 10 40 20 30 . . . . . . 90 20 60 . 10 10 140 . . 180 310 10 Lost Ally 792 | . . . 10 76 . 20 16 40 200 20 260 80 20 . . . 30 . . . . . . . . . 20 . Squads Dispatched 63 | . 3 . 2 1 . . 2 . . . 8 3 . . . . 15 . . . . . 4 . 4 9 12 . Investigation 8 | . 1 . 1 1 . . 1 . . . . . . . . . 3 . . . . . 1 . . . . . Extermination 21 | . . . . . . . 1 . . . . 2 . . . . 6 . . . . . 3 . 3 4 2 . Reinforcement 15 | . 2 . 1 . . . . . . . 6 1 . . . . . . . . . . . . . 1 4 . Assault 11 | . . . . . . . . . . . 1 . . . . . 4 . . . . . . . . 1 5 . Garrison 4 | . . . . . . . . . . . 1 . . . . . 2 . . . . . . . . . 1 . Intercept 4 | . . . . . . . . . . . . . . . . . . . . . . . . . 1 3 . . Searches Triggered . | . . . . . . . . . . . . . . . . . . . . . . . . . . . . . Construction Impeded 4 | . . . . . . . . . . . 1 . . . . . . . . . . . . . . 1 2 . Haulers Reinforced 2 | . . . . . . . . . . . 1 1 . . . . . . . . . . . . . . . . Active Scanning Responses . | . . . . . . . . . . . . . . . . . . . . . . . . . . . . . Cargo Convoy Interrupts . | . . . . . . . . . . . . . . . . . . . . . . . . . . . . . Stealth | -11 -10 -10 -9 -9 -7 -6 -6 -6 -6 -6 -6 -5 -5 -5 -5 -4 -4 -4 -4 -4 -3 -3 -3 -3 -2 -2 -1 -1 --------- Run | Yrd Mat Min Mat Min Zio Pro Fac Ext Cet Arc Hub Fac Upp Upp War Pro Fac Upp Upp Zhi Pro Res Arm Lab Res Tes Acc Com Distress Signals 35 | . 4 2 5 . . . . 2 2 . 1 1 . . 2 . 5 . . . . . 2 . 2 2 5 . Communications Jammed 49 | . . . . . . . . . . . . . . . . . . . . . . . . . 2 23 24 . Distress Signals 48 | . . . . . . . . . . . . . . . . . . . . . . . . . 1 23 24 . Times Spotted 520 | . 31 4 38 4 . 5 3 27 10 16 19 10 11 2 41 . 57 6 9 . 4 12 51 1 24 49 81 5 Peak Tracking Total 19 | . 4 2 6 3 . 3 1 6 5 2 4 5 5 1 19 . 8 5 3 . 3 6 7 1 6 9 11 6 Tactical Retreats 13 | . 3 . 1 . . . . . . . 1 . 1 . 1 . 3 . . . . . 1 . . . 2 . Traps | -11 -10 -10 -9 -9 -7 -6 -6 -6 -6 -6 -6 -5 -5 -5 -5 -4 -4 -4 -4 -4 -3 -3 -3 -3 -2 -2 -1 -1 ------- Run | Yrd Mat Min Mat Min Zio Pro Fac Ext Cet Arc Hub Fac Upp Upp War Pro Fac Upp Upp Zhi Pro Res Arm Lab Res Tes Acc Com Traps Triggered 9 | . . 1 1 . . . 1 . . . 1 . . . . . . . 1 . . . 2 . . 2 . . Indirectly . | . . . . . . . . . . . . . . . . . . . . . . . . . . . . . Trap Hack Attempts . | . . . . . . . . . . . . . . . . . . . . . . . . . . . . . Triggered . | . . . . . . . . . . . . . . . . . . . . . . . . . . . . . Disarmed . | . . . . . . . . . . . . . . . . . . . . . . . . . . . . . Reprogrammed . | . . . . . . . . . . . . . . . . . . . . . . . . . . . . . Reused . | . . . . . . . . . . . . . . . . . . . . . . . . . . . . . Traps Extracted . | . . . . . . . . . . . . . . . . . . . . . . . . . . . . . Installed . | . . . . . . . . . . . . . . . . . . . . . . . . . . . . . Triggered . | . . . . . . . . . . . . . . . . . . . . . . . . . . . . . Machines | -11 -10 -10 -9 -9 -7 -6 -6 -6 -6 -6 -6 -5 -5 -5 -5 -4 -4 -4 -4 -4 -3 -3 -3 -3 -2 -2 -1 -1 ---------- Run | Yrd Mat Min Mat Min Zio Pro Fac Ext Cet Arc Hub Fac Upp Upp War Pro Fac Upp Upp Zhi Pro Res Arm Lab Res Tes Acc Com Machines Disabled 58 | . . 1 1 . . . . . . 3 4 1 1 . 1 . 15 . . . . 1 4 1 3 14 8 . Max in Single Turn 2 | . . 1 1 . . . . . . 1 1 1 1 . 1 . 2 . . . . 1 1 1 1 1 2 . Garrison Access 4 | . . . . . . . . . . . 1 . . . . . 1 . . . . . . . . . 2 . Network Hub 1 | . . . . . . . . . . . 1 . . . . . . . . . . . . . . . . . Machines Repaired . | . . . . . . . . . . . . . . . . . . . . . . . . . . . . . Machines Dismantled . | . . . . . . . . . . . . . . . . . . . . . . . . . . . . . Machines Sabotaged . | . . . . . . . . . . . . . . . . . . . . . . . . . . . . . Overloaded Fab Kills . | . . . . . . . . . . . . . . . . . . . . . . . . . . . . . Hacking | -11 -10 -10 -9 -9 -7 -6 -6 -6 -6 -6 -6 -5 -5 -5 -5 -4 -4 -4 -4 -4 -3 -3 -3 -3 -2 -2 -1 -1 --------- Run | Yrd Mat Min Mat Min Zio Pro Fac Ext Cet Arc Hub Fac Upp Upp War Pro Fac Upp Upp Zhi Pro Res Arm Lab Res Tes Acc Com Machines Accessed 45 | . 6 1 7 1 . . 1 4 1 . 1 . . . 1 . 8 . 1 4 . . . . 2 6 1 . Terminals 17 | . 5 . 7 . . . . 4 1 . . . . . . . . . . . . . . . . . . . Fabricators 6 | . . . . . . . . . . . . . . . . . 4 . . . . . . . 1 1 . . Repair Stations 3 | . . . . . . . 1 . . . . . . . . . 1 . . . . . . . . 1 . . Recycling Units 2 | . 1 . . . . . . . . . . . . . . . 1 . . . . . . . . . . . Scanalyzers 4 | . . . . . . . . . . . . . . . . . 1 . . . . . . . . 3 . . Garrison Access 5 | . . . . . . . . . . . 1 . . . . . 1 . . . . . . . 1 1 1 . Total Hacks 111 | . 8 1 17 1 . . 4 6 1 . 1 . . . 1 . 37 . 1 17 . . . . 6 9 1 . Successful 63 | . 6 1 10 1 . . 2 4 1 . 1 . . . 1 . 12 . 1 17 . . . . 5 1 . . Failed 48 | . 2 . 7 . . . 2 2 . . . . . . . . 25 . . . . . . . 1 8 1 . Catastrophic 13 | . . . . . . . . 1 . . . . . . . . 8 . . . . . . . 1 2 1 . Database Lockouts . | . . . . . . . . . . . . . . . . . . . . . . . . . . . . . Manual 87 | . 8 . 12 . . . 4 8 1 . 11 . . . . . 20 . . . . 3 . 1 1 15 . 3 Terminals 31 | . 7 . 17 . . . . 6 1 . . . . . . . . . . . . . . . . . . . Fabricators 25 | . . . . . . . . . . . . . . . . . 19 . . . . . . . 5 1 . . Repair Stations 16 | . . . . . . . 4 . . . . . . . . . 10 . . . . . . . . 2 . . Recycling Units 2 | . 1 . . . . . . . . . . . . . . . 1 . . . . . . . . . . . Scanalyzers 8 | . . . . . . . . . . . . . . . . . 4 . . . . . . . . 4 . . Garrison Access 8 | . . . . . . . . . . . 1 . . . . . 3 . . . . . . . 1 2 1 . Terminal Hacks 28 | . . 1 2 1 . . . 4 1 . . . . . 1 . . . 1 17 . . . . . . . . Record 5 | . . . . . . . . . . . . . . . . . . . . 5 . . . . . . . . Part Schematic 4 | . . . . . . . . . . . . . . . . . . . . 4 . . . . . . . . Robot Analysis 4 | . . . . . . . . . . . . . . . . . . . . 4 . . . . . . . . Prototype ID Bank 4 | . . . . . . . . . . . . . . . . . . . . 4 . . . . . . . . Open Door 9 | . . 1 . 1 . . . 4 1 . . . . . 1 . . . 1 . . . . . . . . . Zone Layout 2 | . . . 2 . . . . . . . . . . . . . . . . . . . . . . . . . Fabricator Hacks 9 | . . . . . . . . . . . . . . . . . 5 . . . . . . . 4 . . . Load Schematic 5 | . . . . . . . . . . . . . . . . . 3 . . . . . . . 2 . . . Build 4 | . . . . . . . . . . . . . . . . . 2 . . . . . . . 2 . . . Repair Station Hacks 4 | . . . . . . . 2 . . . . . . . . . 2 . . . . . . . . . . . Scan Component 3 | . . . . . . . 1 . . . . . . . . . 2 . . . . . . . . . . . Repair 1 | . . . . . . . 1 . . . . . . . . . . . . . . . . . . . . . Recycling Unit Hacks . | . . . . . . . . . . . . . . . . . . . . . . . . . . . . . Scanalyzer 2 | . . . . . . . . . . . . . . . . . 2 . . . . . . . . . . . Insert Component 1 | . . . . . . . . . . . . . . . . . 1 . . . . . . . . . . . Analyze 1 | . . . . . . . . . . . . . . . . . 1 . . . . . . . . . . . Garrison Access Hacks 2 | . . . . . . . . . . . 1 . . . . . 1 . . . . . . . . . . . Seal Access 2 | . . . . . . . . . . . 1 . . . . . 1 . . . . . . . . . . . Unauthorized Hacks 18 | . 6 . 8 . . . . . . . . . . . . . 2 . . . . . . . 1 1 . . Terminals 13 | . 5 . 8 . . . . . . . . . . . . . . . . . . . . . . . . . Assimilate 1 | . . . 1 . . . . . . . . . . . . . . . . . . . . . . . . . Botnet 1 | . . . 1 . . . . . . . . . . . . . . . . . . . . . . . . . Skim 11 | . 5 . 6 . . . . . . . . . . . . . . . . . . . . . . . . . Fabricators 3 | . . . . . . . . . . . . . . . . . 2 . . . . . . . 1 . . . Prioritize 3 | . . . . . . . . . . . . . . . . . 2 . . . . . . . 1 . . . Repair Stations . | . . . . . . . . . . . . . . . . . . . . . . . . . . . . . Recycling Units 1 | . 1 . . . . . . . . . . . . . . . . . . . . . . . . . . . Tunnel 1 | . 1 . . . . . . . . . . . . . . . . . . . . . . . . . . . Scanalyzers 1 | . . . . . . . . . . . . . . . . . . . . . . . . . . 1 . . Researchers 1 | . . . . . . . . . . . . . . . . . . . . . . . . . . 1 . . Garrison Access . | . . . . . . . . . . . . . . . . . . . . . . . . . . . . . Data Cores Recovered 1 | . . . . . . . . . . . . . . . . . 1 . . . . . . . . . . . Used . | . . . . . . . . . . . . . . . . . . . . . . . . . . . . . Hacking Detections 25 | . 3 . 5 . . . 1 1 1 . . . . . . . 7 . . . . . . . 1 5 1 . Full Trace Events 3 | . . . . . . . . . . . . . . . . . 3 . . . . . . . . . . . Feedback Events . | . . . . . . . . . . . . . . . . . . . . . . . . . . . . . Feedback Blocked . | . . . . . . . . . . . . . . . . . . . . . . . . . . . . . Robot Schematics Acquired 3 | . . . . . 3 . . . . . . . . . . . . . . . . . . . . . . . Robots Built . | . . . . . . . . . . . . . . . . . . . . . . . . . . . . . Authchips . | . . . . . . . . . . . . . . . . . . . . . . . . . . . . . Time . | . . . . . . . . . . . . . . . . . . . . . . . . . . . . . Total Robot Build Rating . | . . . . . . . . . . . . . . . . . . . . . . . . . . . . . Part Schematics Acquired 19 | . . . . . 14 . . . . . . . . . . . 1 . . 4 . . . . . . . . Parts Built 3 | . . . . . . . . . . . . . . . . . 1 . . . . . . . 2 . . . Authchips 2 | . . . . . . . . . . . . . . . . . . . . . . . . . 2 . . . Time 306 | . . . . . . . . . . . . . . . . . 204 . . . . . . . 102 . . . Total Part Build Rating 24 | . . . . . . . . . . . . . . . . . 8 . . . . . . . 16 . . . Parts Repaired 1 | . . . . . . . 1 . . . . . . . . . . . . . . . . . . . . . Time 32 | . . . . . . . 32 . . . . . . . . . . . . . . . . . . . . . Parts Recycled . | . . . . . . . . . . . . . . . . . . . . . . . . . . . . . Recycled Matter . | . . . . . . . . . . . . . . . . . . . . . . . . . . . . . Retrieved Matter . | . . . . . . . . . . . . . . . . . . . . . . . . . . . . . Retrieved Components . | . . . . . . . . . . . . . . . . . . . . . . . . . . . . . Parts Scanalyzed 1 | . . . . . . . . . . . . . . . . . 1 . . . . . . . . . . . Part Schematics Acquired 1 | . . . . . . . . . . . . . . . . . 1 . . . . . . . . . . . Parts Damaged . | . . . . . . . . . . . . . . . . . . . . . . . . . . . . . Bothacking | -11 -10 -10 -9 -9 -7 -6 -6 -6 -6 -6 -6 -5 -5 -5 -5 -4 -4 -4 -4 -4 -3 -3 -3 -3 -2 -2 -1 -1 ------------ Run | Yrd Mat Min Mat Min Zio Pro Fac Ext Cet Arc Hub Fac Upp Upp War Pro Fac Upp Upp Zhi Pro Res Arm Lab Res Tes Acc Com Used RIF Installer . | . . . . . . . . . . . . . . . . . . . . . . . . . . . . . Robots Hacked 1 | . . . . . . . . . . . . 1 . . . . . . . . . . . . . . . . Non-combat 1 | . . . . . . . . . . . . 1 . . . . . . . . . . . . . . . . Combat . | . . . . . . . . . . . . . . . . . . . . . . . . . . . . . Robot Hacks Applied 1 | . . . . . . . . . . . . 1 . . . . . . . . . . . . . . . . find_chute 1 | . . . . . . . . . . . . 1 . . . . . . . . . . . . . . . . Relay Couplers Released 1 | . . . . . . . . . . . . . . . . . . . . . . . . . . . 1 . Machine Destruction 1 | . . . . . . . . . . . . . . . . . . . . . . . . . . . 1 . Fabnet Peak Effective % . | . . . . . . . . . . . . . . . . . . . . . . . . . . . . . Robots Rewired 15 | . . . . . . . . 15 . . . . . . . . . . . . . . . . . . . . Allies Hacked 1 | . . . . . . . . . . . . 1 . . . . . . . . . . . . . . . . Hacks Repelled . | . . . . . . . . . . . . . . . . . . . . . . . . . . . . . Allies | -11 -10 -10 -9 -9 -7 -6 -6 -6 -6 -6 -6 -5 -5 -5 -5 -4 -4 -4 -4 -4 -3 -3 -3 -3 -2 -2 -1 -1 -------- Run | Yrd Mat Min Mat Min Zio Pro Fac Ext Cet Arc Hub Fac Upp Upp War Pro Fac Upp Upp Zhi Pro Res Arm Lab Res Tes Acc Com Total Allies 60 | . . . 1 6 9 . . 27 5 . 6 . . . . . 3 . . . . . . . . . 3 . Largest Group 25 | . . . 1 3 9 9 8 25 25 18 16 5 1 . . . 2 . . . . . . . . . 3 . Highest-Rated Group 1005 | . . . 10 47 289 289 275 968 1005 1002 874 351 96 . . . 206 . . . . . . . . . 379 . Highest-Rated Ally 159 | . . . 10 31 40 40 40 159 159 152 96 96 96 . . . 103 . . . . . . . . . 135 . Zionite Dispatches 6 | . . . . . . . . 2 . . 2 . . . . . 2 . . . . . . . . . . . Heavy 1 | . . . . . . . . . . . . . . . . . 1 . . . . . . . . . . . Light 3 | . . . . . . . . 1 . . 2 . . . . . . . . . . . . . . . . . Fire 1 | . . . . . . . . 1 . . . . . . . . . . . . . . . . . . . . Thermal Resupply 1 | . . . . . . . . . . . . . . . . . 1 . . . . . . . . . . . Total Orders 19 | . . . . . . . . . 3 4 2 . . . . . 1 . . . . 2 4 . 3 . . . STAY 6 | . . . . . . . . . 2 2 1 . . . . . . . . . . 1 . . . . . . FOLLOW 6 | . . . . . . . . . 1 2 1 . . . . . . . . . . . 1 . 1 . . . DROP 1 | . . . . . . . . . . . . . . . . . 1 . . . . . . . . . . . RETURN 6 | . . . . . . . . . . . . . . . . . . . . . . 1 3 . 2 . . . Ally Attacks 530 | . . . . 23 . 13 23 81 62 18 195 34 2 . . . 20 . . . . . . . . . 59 . Total Damage 17410 | . . . . 244 . 244 546 2347 1299 548 6493 1614 46 . . . 1308 . . . . . . . . . 2721 . Kills 93 | . . . . 3 . 2 3 10 7 2 38 8 1 . . . 7 . . . . . . . . . 12 . Allies Corrupted 2 | . . . . . . . . . . . . 1 . . . . 1 . . . . . . . . . . . Allies Melted . | . . . . . . . . . . . . . . . . . . . . . . . . . . . . . Intel | -11 -10 -10 -9 -9 -7 -6 -6 -6 -6 -6 -6 -5 -5 -5 -5 -4 -4 -4 -4 -4 -3 -3 -3 -3 -2 -2 -1 -1 ------- Run | Yrd Mat Min Mat Min Zio Pro Fac Ext Cet Arc Hub Fac Upp Upp War Pro Fac Upp Upp Zhi Pro Res Arm Lab Res Tes Acc Com Active Infowar (turns) 9423 | . . 1 . . . . 690 465 . . . 709 81 384 594 455 1737 718 663 . . . . . 1233 1401 292 . Sensors 4324 | . . 1 . . . . . . . . . . 81 384 594 454 1541 718 551 . . . . . . . . . Terrain 5764 | . . . . . . . 690 465 . . . 32 . 380 576 455 1199 532 428 . . . . . 173 834 . . Jamming 3405 | . . . . . . . 70 . . . . 683 . . . . 125 . . . . . . . 1233 1002 292 . Robot Analysis Total 4 | . . . . . . . . . . . . . . . . . . . . 4 . . . . . . . . Derelict Logs Recovered 12 | . . 1 . 2 1 1 . . . . . . 1 1 . 2 . 2 1 . . . . . . . . . Drone Launches 6 | . . . . . . . . . . . . . . . . . . . . . . 1 3 . 2 . . . Drone Recoveries 6 | . . . . . . . . . . . . . . . . . . . . . . 1 3 . 2 . . . Zionite Intel Received 4 | . . . . . . . . . . . 1 . . . . . 1 . . . . . . . . 2 . . Prototype Stockpiles 1 | . . . . . . . . . . . . . . . . . . . . . . . . . . 1 . . Unaware Analyses 1 | . . . . . . . . . . . . . . . . . . . . . . . . . . 1 . . Trap Installations 1 | . . . . . . . . . . . . . . . . . 1 . . . . . . . . . . . Active Garrisons 1 | . . . . . . . . . . . 1 . . . . . . . . . . . . . . . . . Exploration | -11 -10 -10 -9 -9 -7 -6 -6 -6 -6 -6 -6 -5 -5 -5 -5 -4 -4 -4 -4 -4 -3 -3 -3 -3 -2 -2 -1 -1 ------------- Run | Yrd Mat Min Mat Min Zio Pro Fac Ext Cet Arc Hub Fac Upp Upp War Pro Fac Upp Upp Zhi Pro Res Arm Lab Res Tes Acc Com Turns Passed 24495 | 93 1743 818 1214 887 1154 554 693 1699 530 474 669 773 730 685 911 582 2152 718 851 286 671 415 976 521 1321 1463 852 60 Spaces Moved 12488 | 50 649 448 734 701 890 404 333 747 215 219 360 414 397 407 509 328 968 358 356 159 368 213 383 168 618 697 306 89 Core 106 | 5 . . . . . . . . . . . . . . . . . . . . . . . . . . 12 89 Treads 8769 | 45 649 . . . . 61 333 747 215 219 360 414 397 407 509 328 968 358 356 159 368 213 382 . 348 697 236 . Legs 373 | . . . . . . . . . . . . . . . . . . . . . . . 1 168 204 . . . Wheels 3240 | . . 448 734 701 890 343 . . . . . . . . . . . . . . . . . . 66 . 58 . Hover . | . . . . . . . . . . . . . . . . . . . . . . . . . . . . . Flight . | . . . . . . . . . . . . . . . . . . . . . . . . . . . . . Fastest Speed 50 | 50 160 115 105 120 120 120 160 160 156 157 157 159 159 159 159 166 164 164 162 162 160 155 155 180 102 155 50 50 Average Speed 157 | 151 231 134 121 120 120 126 167 162 159 157 157 159 159 159 159 166 174 164 162 162 161 158 159 258 169 160 171 50 Slowest Speed 480 | 160 240 145 145 120 120 160 240 242 235 157 159 159 159 159 166 166 245 164 164 162 163 160 270 270 270 232 480 50 Overloaded Moves . | . . . . . . . . . . . . . . . . . . . . . . . . . . . . . Propulsion Burnouts . | . . . . . . . . . . . . . . . . . . . . . . . . . . . . . Robots Hopped . | . . . . . . . . . . . . . . . . . . . . . . . . . . . . . Potential Cave-ins . | . . . . . . . . . . . . . . . . . . . . . . . . . . . . . Cave-ins Triggered 1 | . . . . . . . . . . . . . . . . . . . . . . . . . . . 1 . Teleports 2 | . . . . . . . . . . . . . . . . . . . . . . . 1 . . 1 . . Exploration Rate (%) 53 | 3 92 94 64 100 88 66 13 88 66 88 40 10 58 60 61 62 39 54 57 60 60 4 24 92 17 84 12 5 Regions Visited 28 Branch Regions 20 Pre-discovered Areas 12 | . 1 2 2 1 1 . . . . . . . . . . 1 . 1 . 3 . . . . . . . . Known Exits Taken 11 | . . 1 1 . . . 1 . . . . 1 . . . . 1 1 1 1 1 1 . . . . 1 . Unknown Exits Taken 17 | 1 1 . . 1 1 1 . 1 1 1 1 . 1 1 1 1 . . . . . . 1 1 1 1 . . Scrap Searched 17 | . . 1 . 2 3 2 . . . . . . 2 2 . 1 . . 2 . 2 . . . . . . . Spaces Dug 104 | . 12 . . . . . 3 . . . 4 1 1 1 . 3 20 12 1 . 10 1 4 . 8 17 6 . Terrain Destroyed 940 | . 31 49 12 . . . 3 23 . 7 161 19 22 4 30 8 74 21 12 . 21 20 72 . 11 122 218 . Melee 3 | . 1 . . . . . 2 . . . . . . . . . . . . . . . . . . . . . Projectile 333 | . . . . . . . 1 23 . 7 7 19 11 4 . 8 54 7 12 . 21 8 58 . 11 44 38 . AOE 577 | . 30 49 12 . . . . . . . 154 . 11 . 30 . 20 14 . . . 12 14 . . 66 165 . Terrain Rammed . | . . . . . . . . . . . . . . . . . . . . . . . . . . . . . Walls Destroyed . | . . . . . . . . . . . . . . . . . . . . . . . . . . . . . Machines Disabled . | . . . . . . . . . . . . . . . . . . . . . . . . . . . . . Actions | -11 -10 -10 -9 -9 -7 -6 -6 -6 -6 -6 -6 -5 -5 -5 -5 -4 -4 -4 -4 -4 -3 -3 -3 -3 -2 -2 -1 -1 --------- Run | Yrd Mat Min Mat Min Zio Pro Fac Ext Cet Arc Hub Fac Upp Upp War Pro Fac Upp Upp Zhi Pro Res Arm Lab Res Tes Acc Com Total 16029 | 63 785 640 928 726 977 436 426 1130 363 307 438 494 460 421 585 356 1269 467 568 179 411 265 633 228 882 1009 481 102 Wait 1342 | . 48 156 73 6 79 22 40 107 104 51 14 4 43 . 14 18 129 88 158 . 10 2 20 . 115 34 2 5 Move 12460 | 49 648 447 733 700 889 403 332 746 214 218 359 413 396 406 508 327 967 357 355 158 367 212 382 167 617 696 305 89 Hop . | . . . . . . . . . . . . . . . . . . . . . . . . . . . . . Pick Up 236 | 5 10 4 23 2 4 1 12 13 3 10 8 14 1 . 6 . 14 . 4 3 4 6 26 6 18 23 16 . Fast Attach 179 | 5 1 5 6 . . . 3 4 7 . 7 7 . . 6 . 6 . 5 4 2 9 22 14 10 30 24 2 Attach 128 | 1 2 7 3 . . 1 7 4 3 3 1 4 . . 2 . 10 1 4 3 2 2 13 4 7 16 27 1 Detach 75 | . 1 4 1 . . . . 1 2 . 2 1 . . 5 . 4 . 4 4 1 2 10 6 4 9 13 1 Swap 193 | . 4 2 8 3 . 1 6 15 2 . 11 10 4 4 13 3 34 5 4 1 3 6 21 2 15 11 5 . Drop 265 | . 2 . 16 5 4 2 3 19 10 6 17 20 . . 13 . 12 . 3 2 5 12 30 11 25 42 6 . Fire 922 | 3 64 15 63 10 1 6 18 45 18 19 15 21 16 11 18 8 83 16 31 3 16 12 108 . 70 148 82 2 Melee 31 | . 1 . . . . . 2 1 . . 1 . . . . . 5 . . 1 1 1 . 18 . . . . Ram 4 | . . . 2 . . . . . . . . . . . . . . . . . . . . . . . . 2 Kick . | . . . . . . . . . . . . . . . . . . . . . . . . . . . . . Crush 22 | . 4 . . . . . 3 3 . . 3 . . . . . 5 . . . . 1 1 . 1 . 1 . Escape Stasis . | . . . . . . . . . . . . . . . . . . . . . . . . . . . . . Rewire 172 | . . . . . . . . 172 . . . . . . . . . . . . . . . . . . . . Trap . | . . . . . . . . . . . . . . . . . . . . . . . . . . . . . Miscellaneous . | . . . . . . . . . . . . . . . . . . . . . . . . . . . . . Route ------- -11/Scrapyard -10/Materials (discovered 6 exits: *Mat x3 / *Min x2 / Sub) -10/Mines (discovered 2 exits: *Mat x2) -9/Materials (discovered 4 exits: *Mat x3 / *Min) -9/Mines (discovered 4 exits: *Mat x2 / [*Exi] / [*Zio]) -7/Zion -6/Proximity Caves -6/Factory -6/Extension (discovered 2 exits: [*Fac] / *Cet) -6/Cetus (discovered 2 exits: [*Fac] / [*Arc]) -6/Archives (discovered 3 exits: [*Fac] / *Hub x2) -6/Hub_04(d) (discovered 3 exits: [*Fac x3]) -5/Factory (discovered 2 exits: *Fac / *Upp) -5/Upper Caves -5/Upper Caves -5/Warlord -4/Proximity Caves -4/Factory (discovered 5 exits: *Res x4 / *Upp) -4/Upper Caves -4/Upper Caves (discovered 2 exits: *Res / *Zhi) -4/Zhirov -3/Proximity Caves -3/Research -3/Armory -3/Lab -2/Research -2/Testing -1/Access (discovered 2 exits: Sur / *Com) -1/Command History --------- Turn | Location | Event 14 | -11/Scrapyard | Discovered new exit (range 16) 94 | -11/Scrapyard | Entered Materials 315 | -10/Materials | Build established: Mutant 332 | -10/Materials | Discovered new exit (range 12) 481 | -10/Materials | Discovered new exit (range 7) 705 | -10/Materials | Discovered new exit (range 10) 1144 | -10/Materials | Discovered new exit (range 14) 1391 | -10/Materials | Discovered new exit (range 7) 1463 | -10/Materials | Identified exit to Subcaves 1498 | -10/Materials | Learned location of 2 exits from Materials 1524 | -10/Materials | Learned Storage stockpile data 1549 | -10/Materials | Learned Recycling recycling unit intel 1567 | -10/Materials | Learned location of 2 exits from Mines 1837 | -10/Materials | Entered Mines 1838 | -10/Mines | Assembled infested the area 1838 | -10/Mines | Identified exit to Materials 1843 | -10/Mines | Assisted by a Guerilla fighting off Assembled 1893 | -10/Mines | Learned location of Storage (-7) 1918 | -10/Mines | Lost 6 parts (1p2n3w) 2060 | -10/Mines | Met a Derelict who couldn't figure out how to use a Trap Extractor 2155 | -10/Mines | Found a damaged Exp. Sensor Array with a note attached 2158 | -10/Mines | Found Prototype Device 2158 | -10/Mines | Identified Exp. Sensor Array 2490 | -10/Mines | Learned location of Zion (-7) 2655 | -10/Mines | Entered Materials 2655 | -9/Materials | Evolved 2 slots: Propulsion x1, Weapon x1 2656 | -9/Materials | Identified exit to Mines 2657 | -9/Materials | Identified exit to Materials 3180 | -9/Materials | Build established: Gunner 3577 | -9/Materials | Build established: Tank 3578 | -9/Materials | Learned Storage non-interactive machine intel 3640 | -9/Materials | Learned Storage security intel 3770 | -9/Materials | Learned 2 Storage zone layouts 3794 | -9/Materials | Loaded intel: 17 interactive machine locations 3835 | -9/Materials | Learned Storage trap positions 3869 | -9/Materials | Entered Mines 3881 | -9/Mines | Met a Derelict bent on vengeance 3895 | -9/Mines | Assisted by bots powering up and referring to "LRC-V3" 3903 | -9/Mines | Deemed a non-threat by the Exiles lab entrance 3903 | -9/Mines | Discovered new exit (range 5) 4051 | -9/Mines | Found DCF Scrap (12 items) 4077 | -9/Mines | Build established: Gunner 4147 | -9/Mines | Discovered exit to Materials (range 12) 4154 | -9/Mines | Discovered exit to Materials (range 6) 4166 | -9/Mines | A Derelict revealed a hidden shortcut to a safe place 4331 | -9/Mines | Learned location of 1 exit from Materials 4465 | -9/Mines | Met a Derelict shopkeep closing up shop 4522 | -9/Mines | Received a Mining Laser from a helpful Derelict 4756 | -9/Mines | Entered Zion 4756 | -7/Zion | Accompanied by 1 ally 4853 | -7/Zion | Discovered new exit (range 12) 5132 | -7/Zion | Learned Factory emergency access door positions 5231 | -7/Zion | Gained Derelict followers 5304 | -7/Zion | Received a hallucinogenic algorithm 5450 | -7/Zion | Learned Factory emergency access door positions 5463 | -7/Zion | Found CR-A16's Pointy Stick 5586 | -7/Zion | Met Imprinter 5605 | -7/Zion | Imprinted 5608 | -7/Zion | Declared Zion's savior 5910 | -7/Zion | Entered Proximity Caves 5910 | -6/Proximity Caves | Accompanied by 9 allies 6425 | -6/Proximity Caves | Discovered new exit (range 10) 6464 | -6/Proximity Caves | Entered Factory 6464 | -6/Factory | Accompanied by 8 allies 6464 | -6/Factory | Evolved 6 slots: Propulsion x2, Utility x4 6465 | -6/Factory | Identified exit to Extension 6496 | -6/Factory | Ran a hallucination algorithm 6762 | -6/Factory | Spotted B-75 Beast 6770 | -6/Factory | Build established: Scavenger-Skirmisher 6781 | -6/Factory | Allies destroyed B-75 Beast 6800 | -6/Factory | Lost 3 allies 7128 | -6/Factory | Repaired Imp. Treads 7157 | -6/Factory | Entered Extension 7490 | -6/Extension | Build established: Scavenger-Tank 7715 | -6/Extension | Rescued a captive Derelict 7715 | -6/Extension | Rescued a captive Derelict 7884 | -6/Extension | Rescued A7 8035 | -6/Extension | Zion Light squad teleported in 8225 | -6/Extension | Build established: Commander-Tank 8267 | -6/Extension | Spotted B-75 Beast 8279 | -6/Extension | Allies destroyed B-75 Beast 8288 | -6/Extension | Spotted B-75 Beast 8297 | -6/Extension | Allies destroyed B-75 Beast 8379 | -6/Extension | Rescued a captive Derelict 8400 | -6/Extension | Zion Fire squad teleported in 8578 | -6/Extension | Rescued a captive Derelict 8578 | -6/Extension | Rescued a captive Derelict 8729 | -6/Extension | Terminal network hard line cut 8748 | -6/Extension | Discovered new exit (range 10) 8750 | -6/Extension | Discovered new exit (range 6) 8773 | -6/Extension | Found Hvy. Reactive Plating 8856 | -6/Extension | Entered Cetus 8856 | -6/Cetus | Accompanied by 25 allies (A7) 8861 | -6/Cetus | Acquired a Cetus Manufacturing Module code from A7 8908 | -6/Cetus | Spotted Cetus Guard 8908 | -6/Cetus | Spotted Cetus Guard 8910 | -6/Cetus | Spotted Cetus Guard 8910 | -6/Cetus | Spotted Cetus Guard 8924 | -6/Cetus | Destroyed Cetus Guard 8927 | -6/Cetus | Allies destroyed Cetus Guard 8929 | -6/Cetus | Allies destroyed Cetus Guard 8930 | -6/Cetus | Allies destroyed Cetus Guard 8937 | -6/Cetus | Found Prototype Protection 8937 | -6/Cetus | Identified Zio. Weapon Casing 8951 | -6/Cetus | Lost 5 allies 9063 | -6/Cetus | Started Cetus Manufacturing Module 9088 | -6/Cetus | Manufactured an Enhanced Grunt 9097 | -6/Cetus | Escorted A7 to Cetus Mainframe 9113 | -6/Cetus | Manufactured an Enhanced Grunt 9119 | -6/Cetus | Discovered new exit (range 15) 9138 | -6/Cetus | Manufactured an Enhanced Grunt 9146 | -6/Cetus | Spotted Cetus Guard 9146 | -6/Cetus | Spotted Cetus Guard 9148 | -6/Cetus | Spotted Cetus Guard 9149 | -6/Cetus | Spotted Cetus Guard 9158 | -6/Cetus | Destroyed Cetus Guard 9162 | -6/Cetus | Allies destroyed Cetus Guard 9163 | -6/Cetus | Manufactured an Enhanced Grunt 9168 | -6/Cetus | Allies destroyed Cetus Guard 9170 | -6/Cetus | Allies destroyed Cetus Guard 9184 | -6/Cetus | Discovered new exit (range 15) 9188 | -6/Cetus | Manufactured an Enhanced Grunt 9194 | -6/Cetus | Scared off Revision 17 9200 | -6/Cetus | Lost 5 allies 9386 | -6/Cetus | Entered Archives 9386 | -6/Archives | Accompanied by 18 allies (A7) 9391 | -6/Archives | Received a hacking code to weaken MAIN.C 9448 | -6/Archives | Lost 3 parts (2n1u) 9451 | -6/Archives | Discovered new exit (range 15) 9470 | -6/Archives | Discovered new exit (range 16) 9542 | -6/Archives | Discovered new exit (range 16) 9716 | -6/Archives | Build established: Commander-Gunner 9860 | -6/Archives | Entered Hub_04(d) 9860 | -6/Hub_04(d) | Accompanied by 16 allies 9860 | -6/Hub_04(d) | Spotted B-75 Beast 9868 | -6/Hub_04(d) | Destroyed B-75 Beast 10044 | -6/Hub_04(d) | Retrieved Zion intel report: Active Garrisons 10056 | -6/Hub_04(d) | Zion Light squad teleported in 10098 | -6/Hub_04(d) | Garrison activated, responded to threat 10111 | -6/Hub_04(d) | Discovered new exit (range 7) 10210 | -6/Hub_04(d) | First assault squad dispatched 10292 | -6/Hub_04(d) | Lost 4 allies 10319 | -6/Hub_04(d) | Zion Light squad teleported in 10322 | -6/Hub_04(d) | Build established: Scavenger-Gunner 10385 | -6/Hub_04(d) | Discovered new exit (range 6) 10473 | -6/Hub_04(d) | Lost 6 allies 10498 | -6/Hub_04(d) | Discovered new exit (range 4) 10513 | -6/Hub_04(d) | Network Hub disabled 10524 | -6/Hub_04(d) | Spotted Lightning 10528 | -6/Hub_04(d) | System corruption reached 10% 10529 | -6/Hub_04(d) | Entered Factory 10529 | -5/Factory | Accompanied by 5 allies 10529 | -5/Factory | Evolved 2 slots: Power x1, Utility x1 10539 | -5/Factory | Murdered 4 allies 10738 | -5/Factory | Discovered new exit (range 5) 11234 | -5/Factory | Discovered new exit (range 16) 11271 | -5/Factory | Identified exit to Upper Caves 11302 | -5/Factory | Entered Upper Caves 11302 | -5/Upper Caves | Accompanied by 1 ally 11365 | -5/Upper Caves | Acquired the password to a Derelict Tinkerer's latest research 11574 | -5/Upper Caves | Encountered a Warlord checkpoint 11770 | -5/Upper Caves | Caught by Unaware searching for contraband prototypes 11831 | -5/Upper Caves | Caught by Unaware searching for contraband prototypes 11875 | -5/Upper Caves | Build established: Scavenger-Tank 11920 | -5/Upper Caves | Discovered new exit (range 14) 11983 | -5/Upper Caves | Learned 8 Factory zone layouts 12032 | -5/Upper Caves | Entered another Upper Caves area 12034 | -5/Upper Caves | Attracted the attention of an 0b10 checkpoint 12170 | -5/Upper Caves | Learned location of 1 exit from Factory 12373 | -5/Upper Caves | Build established: Scavenger-Skirmisher 12534 | -5/Upper Caves | Discovered new exit (range 8) 12717 | -5/Upper Caves | Entered Warlord 12736 | -5/Warlord | Build established: Scavenger-Tank 12770 | -5/Warlord | System corruption cleaned by Quarantine Array 12986 | -5/Warlord | Received a Watcher feed algorithm from an ecstatic Tinkerer 13118 | -5/Warlord | Build established: Scavenger-Skirmisher 13215 | -5/Warlord | Warlord's base attacked by MAIN.C 13237 | -5/Warlord | Met EX-DEC 13242 | -5/Warlord | Found Prototype Energy Cannon 13310 | -5/Warlord | Rebuked by Warlord 13375 | -5/Warlord | Identified Vortex Cannon 13387 | -5/Warlord | Found Prototype Reactor 13387 | -5/Warlord | Identified Vortex Chain Reactor 13394 | -5/Warlord | Found Prototype Processor 13394 | -5/Warlord | Identified Exp. Targeting Computer 13407 | -5/Warlord | Found Prototype Processor 13407 | -5/Warlord | Identified Exp. Armor Integrity Analyzer 13411 | -5/Warlord | Found Prototype Device 13411 | -5/Warlord | Identified System Purifier 13501 | -5/Warlord | Warlord forces counterattacked 13520 | -5/Warlord | Spotted Executioner 13527 | -5/Warlord | Spotted Striker 13528 | -5/Warlord | Spotted Striker 13546 | -5/Warlord | Destroyed Executioner 13558 | -5/Warlord | Spotted Executioner 13571 | -5/Warlord | Destroyed Executioner 13580 | -5/Warlord | Lost 11 allies 13594 | -5/Warlord | Destroyed 13 combat bots 13608 | -5/Warlord | Discovered new exit (range 14) 13618 | -5/Warlord | Spotted B-75 Beast 13618 | -5/Warlord | Spotted B-86 Titan 13628 | -5/Warlord | Entered Proximity Caves 13661 | -4/Proximity Caves | Build established: Scavenger-Gunner 13783 | -4/Proximity Caves | Learned Research garrison access intel 13985 | -4/Proximity Caves | Learned location of Testing (-2) 14011 | -4/Proximity Caves | Discovered new exit (range 7) 14044 | -4/Proximity Caves | Build established: Scavenger-Skirmisher 14210 | -4/Proximity Caves | Entered Factory 14210 | -4/Factory | Evolved 2 slots: Propulsion x1, Utility x1 14211 | -4/Factory | Identified exit to Research 14686 | -4/Factory | Fabricated Centrium Heavy Treads? 14796 | -4/Factory | Spotted B-86 Titan 14829 | -4/Factory | Revealed the true nature of CR-A16's Pointy Stick 14832 | -4/Factory | Destroyed B-86 Titan 14871 | -4/Factory | Lost 3 parts (1n1u1w) 14971 | -4/Factory | Build established: Scavenger-Gunner 14993 | -4/Factory | Zion Thermal Resupply teleported in 15214 | -4/Factory | Garrison activated, responded to threat 15352 | -4/Factory | Zion Heavy squad teleported in 15480 | -4/Factory | Retrieved Zion intel report: Trap Installations 15480 | -4/Factory | Ran a Watcher feed algorithm 15495 | -4/Factory | Discovered exit to Research (range 15) 15684 | -4/Factory | Terminal network hard line cut 15710 | -4/Factory | First assault squad dispatched 15795 | -4/Factory | Garrison activated, responded to threat 15854 | -4/Factory | Destroyed 9 combat bots 15859 | -4/Factory | Lost 3 parts (1p2n) 16130 | -4/Factory | Found Quantum Capacitor 16209 | -4/Factory | Build established: Scavenger-Skirmisher 16339 | -4/Factory | Discovered new exit (range 14) 16360 | -4/Factory | Identified exit to Upper Caves 16362 | -4/Factory | Entered Upper Caves 16727 | -4/Upper Caves | Learned location of Quarantine (-3) 17057 | -4/Upper Caves | Discovered new exit (range 15) 17078 | -4/Upper Caves | Identified exit to Upper Caves 17080 | -4/Upper Caves | Entered another Upper Caves area 17090 | -4/Upper Caves | Discovered exit to Research (range 11) 17441 | -4/Upper Caves | Learned Research terminal intel 17750 | -4/Upper Caves | Discovered new exit (range 14) 17799 | -4/Upper Caves | Attracted the attention of an 0b10 checkpoint 17855 | -4/Upper Caves | Identified exit to Zhirov 17931 | -4/Upper Caves | Build established: Scavenger-Tank 17931 | -4/Upper Caves | Entered Zhirov 17931 | -4/Zhirov | Discovered new exit (range 3) 17962 | -4/Zhirov | Met Zhirov 17991 | -4/Zhirov | Learned location of Command (-1) 18006 | -4/Zhirov | Zhirov requested help retrieving the SGEMP Prototype 18034 | -4/Zhirov | Found Alien Artifact 18053 | -4/Zhirov | Found Alien Artifact 18053 | -4/Zhirov | Identified Integrated Reactor 18053 | -4/Zhirov | Installed Integrated Reactor, increased core energy generation (+10) 18215 | -4/Zhirov | Identified exit to Proximity Caves 18217 | -4/Zhirov | Entered Proximity Caves 18588 | -3/Proximity Caves | Spotted B-86 Titan 18626 | -3/Proximity Caves | Destroyed B-86 Titan 18637 | -3/Proximity Caves | Found Hvy. Reflective Plating 18676 | -3/Proximity Caves | Attracted the attention of an 0b10 checkpoint 18824 | -3/Proximity Caves | Discovered exit to Research (range 15) 18888 | -3/Proximity Caves | Entered Research 18888 | -3/Research | Evolved 2 slots: Utility x2 18889 | -3/Research | Identified exit to Armory 18890 | -3/Research | Loaded intel: 22 terminal locations 18891 | -3/Research | Loaded intel: 3 garrison access locations 19081 | -3/Research | Spotted B-86 Titan 19111 | -3/Research | Destroyed B-86 Titan 19136 | -3/Research | System corruption reached 10% 19171 | -3/Research | Destroyed 8 combat bots 19303 | -3/Research | Entered Armory 19390 | -3/Armory | Found Unknown Launcher 19390 | -3/Armory | Identified Gamma Bomb Array 19416 | -3/Armory | Build established: Tank 19777 | -3/Armory | Found Prototype Processor 19777 | -3/Armory | Identified Exp. Target Analyzer 20106 | -3/Armory | Lost 4 parts (1n1u2w) 20225 | -3/Armory | Lost 3 parts (1p2n) 20275 | -3/Armory | Identified Transdimensional Reconstructor 20275 | -3/Armory | Warped through subspace to slip node 20275 | -3/Armory | Discovered new exit (range 1) 20279 | -3/Armory | Entered Lab 20279 | -3/Lab | Discovered new exit (range 9) 20312 | -3/Lab | Unable to decrypt terminal 20312 | -3/Lab | Opened the door to a hidden lab 20313 | -3/Lab | Gained access to the hidden lab's interior 20315 | -3/Lab | Detected by scanners 20324 | -3/Lab | Confronted by A5 20361 | -3/Lab | System corruption reached 30% 20367 | -3/Lab | Destroyed A5 20389 | -3/Lab | Found Prototype Hackware 20389 | -3/Lab | Identified Exp. Hacking Suite 20394 | -3/Lab | Lost 4 parts (2n2w) 20434 | -3/Lab | Found Alien Artifact 20454 | -3/Lab | Found Transdimensional Reconstructor 20473 | -3/Lab | Found Integrated Reactor 20473 | -3/Lab | Installed Integrated Reactor, increased core energy generation (+10) 20490 | -3/Lab | Found Alien Artifact 20490 | -3/Lab | Identified Core Regenerator 20490 | -3/Lab | Used Core Regenerator, restored core integrity (+325) 20526 | -3/Lab | Found Prototype Hackware 20526 | -3/Lab | Identified Quantum Router 20535 | -3/Lab | Found Prototype Device 20535 | -3/Lab | Identified AEGIS Remote Shield 20540 | -3/Lab | Found Prototype Energy Gun 20540 | -3/Lab | Identified Tachyon Dispersion Ray 20546 | -3/Lab | Found Prototype Energy Cannon 20546 | -3/Lab | Identified Potential Cannon 20729 | -3/Lab | Found Prototype Special Weapon 20729 | -3/Lab | Identified Gui. Remote Datajack 20800 | -3/Lab | Entered Research 20800 | -2/Research | Evolved 2 slots: Power x1, Utility x1 20830 | -2/Research | Build established: Gunner 21361 | -2/Research | Fabricated Centrium Heavy Treads? 21430 | -2/Research | Fabricated Centrium Heavy Treads? 21547 | -2/Research | Build established: Mutant 21564 | -2/Research | Spotted B-90 Cyclops 22058 | -2/Research | Discovered new exit (range 13) 22091 | -2/Research | Intercept squad dispatched 22120 | -2/Research | Spotted Tracker 22121 | -2/Research | Spotted Tracker 22121 | -2/Research | Entered Testing 22173 | -2/Testing | Build established: Scavenger-Gunner 22389 | -2/Testing | Discovered new exit (range 10) 22440 | -2/Testing | Found Prototype Hackware 22471 | -2/Testing | Found Prototype Ballistic Gun 22471 | -2/Testing | Identified Hyp. Multirail 22553 | -2/Testing | Found Prototype Launcher 22553 | -2/Testing | Identified Enh. Gamma Bomb Array 22554 | -2/Testing | System corruption reached 10% 22601 | -2/Testing | Found Prototype Ballistic Cannon 22601 | -2/Testing | Identified Perforator 22678 | -2/Testing | Retrieved Zion intel report: Prototype Stockpiles 22860 | -2/Testing | Spotted Striker 22860 | -2/Testing | Spotted Striker 22881 | -2/Testing | Destroyed Striker 22897 | -2/Testing | Destroyed Striker 22914 | -2/Testing | Spotted Alpha 7 22956 | -2/Testing | Destroyed Alpha 7 23023 | -2/Testing | Stole the SGEMP Prototype 23171 | -2/Testing | Found Prototype Device 23171 | -2/Testing | Identified Exp. Hardlight Generator 23221 | -2/Testing | Found Prototype Energy Cannon 23221 | -2/Testing | Identified Disintegrator 23260 | -2/Testing | Retrieved Zion intel report: Unaware Analyses 23299 | -2/Testing | Found AEGIS Remote Shield 23307 | -2/Testing | Intercept squad dispatched 23314 | -2/Testing | Spotted Tracker 23316 | -2/Testing | Spotted Tracker 23331 | -2/Testing | Spotted Combat Programmer 23333 | -2/Testing | Spotted Combat Programmer 23341 | -2/Testing | Destroyed Tracker 23342 | -2/Testing | Destroyed Combat Programmer 23355 | -2/Testing | System corruption reached 30% 23359 | -2/Testing | Destroyed Combat Programmer 23371 | -2/Testing | First assault squad dispatched 23385 | -2/Testing | Lost 3 parts (2u1w) 23390 | -2/Testing | Destroyed 9 combat bots 23469 | -2/Testing | Warped through subspace 23519 | -2/Testing | Lost 3 parts (1p2u) 23534 | -2/Testing | Found Prototype Energy Cannon 23584 | -2/Testing | Entered Access 23584 | -1/Access | Evolved 2 slots: Power x1, Utility x1 23586 | -1/Access | Loaded intel: 110 machine locations 23586 | -1/Access | Loaded intel: 93 trap records 23586 | -1/Access | Identified exit to Surface 23586 | -1/Access | Discovered exit to Surface (range 222) 23586 | -1/Access | Identified exit to Command 23586 | -1/Access | Discovered exit to Command (range 145) 23587 | -1/Access | Delivered the SGEMP Prototype to Zhirov 23587 | -1/Access | Zhirov transferred Access data 23610 | -1/Access | Lost 9 parts (3p3n2u1w) 23782 | -1/Access | Garrison activated, responded to threat 23861 | -1/Access | Build established: Generator-Tank 23951 | -1/Access | Zhirov warped through subspace 23991 | -1/Access | Crushed by falling debris 23991 | -1/Access | System corruption reached 10% 24047 | -1/Access | Lost 5 parts (1p1n2u1w) 24109 | -1/Access | Spotted B-99 Colossus 24121 | -1/Access | System corruption reached 30% 24125 | -1/Access | Destroyed B-99 Colossus 24133 | -1/Access | Found Prototype Ballistic Gun 24149 | -1/Access | Found Prototype Ballistic Gun 24149 | -1/Access | Identified Multirail (x2) 24284 | -1/Access | Lost 12 parts (3p3n4u2w) 24288 | -1/Access | Destroyed 18 combat bots 24303 | -1/Access | Found Prototype Launcher 24303 | -1/Access | Identified Ragnarok Missile Launcher 24334 | -1/Access | First assault squad dispatched 24416 | -1/Access | Destroyed 9 combat bots 24419 | -1/Access | Lost 8 parts (1p3n2u2w) 24419 | -1/Access | Identified Imp. Potential Cannon 24420 | -1/Access | Spotted B-99 Colossus 24429 | -1/Access | Released all parts (8) 24429 | -1/Access | Spotted B-99 Colossus 24431 | -1/Access | Identified Ghost Barrier 24434 | -1/Access | Core integrity fell below 50% 24436 | -1/Access | Entered Command 24457 | -1/Command | Lost 3 parts (2n1w) 24485 | -1/Command | Core integrity fell below 20% 24496 | -1/Command | Destroyed by P-80 Master with Gamma Rifle Last Messages --------------- 24477_ Destroyed Gamma Rifle. 24480_ Slammed into P-80 Master. 24480_ Destabilizing: System interference. 24480_ Adv. Signal Interpreter temporarily disabled. 24480_ Imp. Targeting Computer destroyed. 24481_ Slammed into P-80 Master. 24481_ Penetrated by Slug. 24484_ Detecting system override signal. 24484_ Slug penetrates P-80 Master. 24484_ Penetrated by Slug. 24486_ Terminal disabled. 24489_ Slug penetrates Terminal. 24491_ Penetrated by Slug. 24493_ Slug penetrates Wall. 24493_ P-80 Master resets K-01 Serf, system corruption cleaned. 24493_ K-01 Serf collects debris. 24494_ Penetrated by Slug. 24495_ P-80 Master resets R-10 Processor, system corruption cleaned. 24495_ P-80 Master resets P-80 Master, system corruption cleaned. 24496_ System corrupted: Component data lost. Map ----- +----------------------------------------------------+ | ?????????????????????????????????????????????????? | | ?????????????????????????????????????????????????? | | ?????????????????????????????????????????????????? | | ?????????????????????????????????????????????????? | | ?????????????????????????????????????????????????? | | ?????????????????????????????????????????????????? | | ?????????????????????????????????????????????????? | | ?????????????????????????????????????????????????? | | ?????????????????????????????????????????????????? | | ?????????????????????????????????????????????????? | | ?????????????????????????????????????????????????? | | ????????????????????????????????????????????? ??? | | ????????????????????????????????????????????? ??? | | ????????????????????????????????????????????? ??? | | ????????????????????????????????????????????# ??? | | ????????????????????????????????????????????# #?? | | ??????????????????#?????????????????????????+ #?? | | ??????????????????# ????????????????????????# #?? | | ??????????????????# ????????????????????????# #?? | | ??????????????????# ????????????????????????# ### | | ??????????????????# ???????????? ??????????# # | | ??????????????????# ??????????? !??????????# # | | ??????????????????# ########+##+#####???????# # | | ???????????????#### +??????# # | | ???????????????+ w ! #?????????????# # | | ???????????????#### @ = #?????????????# # | | ??????????????????#"" #?????????????# + | | ??????????????????#"" #?????????????# # | | ??????????????????#"" #?????????????# # | | ??????????????????#T R #?????????????# # | | ??????????????????#"" #?????????????# # | | ??????????????????#"" h #?????????????# # | | ????????????? ????# " h #?????????????## ### | | ????????????? # p p #########+#????# #?# | | ?????????????? * + k #????# #?# | | ??????????????????# #????# #?# | | ??????????????????# #????# #?# | | ??????????????????# #####+########## #???## ### | | ??????????????????# # #?????# ##### # | | ??????????????????# # #?????# # | | ??????????????????# # "" #?????# " + | | ??????????????????# #""" #?????# ##### # | | ??????????????????# #"R ####### ######+### | | ??????????????????# #""" + + | | ?????????????????? #""" # # | | ??????????????????? ?# # # | | ??????????????????????# + + | | ??????????????????????################### !! | | ????????????????????????????????????????# !! | | ????????????????????????????????????????# !! | +----------------------------------------------------+ Best States ------------- Heat Dissipation 173 Coolant Potential 100 Energy Generation 109 Energy Capacity 1540 Matter Stores 300 Matter Capacity 300 Sight Range 16 Robot Scan Range 20 Terrain Scan Range 16 Terrain Scan Density 210 Jamming Range 14 Power Amplification 40 Base Temperature (-) 200 Armor Coverage 750 Resistance: KI 20 Resistance: TH 25 Point Defense Rating 240 Weapon Cycling 15 Evasion (%) 55 Targeting Accuracy 12 Core Analysis 6 Recoil Reduction 6 Particle Charging 30 Offensive Hacking 16 Defensive Hacking 20 Authchip Count 2 Item Schematics ----------------- Power Sword | -7/Zion | Archive Imp. Medium Armor Plating | -7/Zion | Archive Hvy. Missile Launcher | -7/Zion | Archive Proton Cannon | -7/Zion | Archive Gravmag System | -7/Zion | Archive Power Maul | -7/Zion | Archive Imp. Particle Charger | -7/Zion | Archive Imp. Shock Absorption System | -7/Zion | Archive Imp. Thermal Shield | -7/Zion | Archive Transmission Jammer | -7/Zion | Archive Imp. Cryofiber Web | -7/Zion | Archive Adv. Terrain Scanner | -7/Zion | Archive Phase Cannon | -7/Zion | Archive Imp. EM Pulse Cannon | -7/Zion | Archive Centrium Heavy Treads | -4/Factory | Scanalyzed Assault Drone Bay | -4/Zhirov | Free Exp. Heat Sink | -4/Zhirov | Free Imp. Arc Thrower | -4/Zhirov | Free Exp. Optical Array | -4/Zhirov | Free Robot Schematics ------------------ B-48 Gladiator | -7/Zion | Archive G-47 Trooper | -7/Zion | Archive L-61 Swordsman | -7/Zion | Archive Fabricated ------------ Centrium Heavy Treads | x1 | -4/Factory Centrium Heavy Treads | x1 | -2/Research | Authchip Centrium Heavy Treads | x1 | -2/Research | Authchip Repaired ---------- Imp. Treads | 36% | -6/Factory Alien Tech Used ----------------- Integrated Reactor Transdimensional Reconstructor Core Regenerator Achievements -------------- Special Delivery Challenges ------------ None Game ------ Seed TransportDisposableDetonator Manual? 0 Play Time 04:13:15 Cumulative 176.4 hours Start 2025.08.17 @ 22:38:57 End 2025.08.18 @ 12:34:01 Sessions 3 Manual Loads 0 Difficulty Rogue Special Mode None Game No. 83 Rogue 83 Adventurer 0 Explorer 0 Win Type - Total 16 Types 4/2/4/1/1/0/0/1/1/2 Lore% 71 Gallery% 70 Achievement% 66 Wizard Run 0 Options --------- Layout 0 ASCII 0 Keyboard 1 Movement Vi Keybinds 0 Fullscreen 2 Font 18/SmallcapsGlow Map View 76x50 Zoom Use 0% Tactical HUD 1 Map Filters NONE Filters NONE Steam 1 RUN: 61c234d2-e88d-4984-a535-60df8c8b1114